fUST/lending_fUST_20250715
["ID","MTS","AMOUNT","RATE_DAILY","PERIOD"]
[372260906,1752567057592,-460.0,0.00020821,2]
[372260907,1752567057602,-460.0,0.00020821,2]
[372260908,1752567057611,-965.69,0.00020821,2]
[372260909,1752567057621,-460.0,0.00020821,2]
[372260910,1752567057630,-560.9,0.00020821,2]
[372260911,1752567057639,-151.0,0.00020821,2]
[372260912,1752567057649,-500.0,0.00020829,2]
[372260913,1752567057658,-612.26553799,0.00020829,2]
[372260914,1752567057667,-833.14994784,0.0002085,2]
[372260915,1752567057676,-34891.86565638,0.00020883,2]
[372260916,1752567057685,-4995.96128383,0.00020884,2]
[372260917,1752567057695,-151.0,0.00020884,2]
[372260918,1752567057705,-151.0,0.000209,4]
[372260919,1752567057716,-2449.87,0.000209,2]
[372260920,1752567057726,-13137.50784171,0.000209,4]
[372260921,1752567057737,-1236.95564081,0.00020929,2]
[372260922,1752567057746,-2908.45620055,0.00020938,2]
[372260923,1752567057756,-260.0,0.00020957,2]
[372260924,1752567057766,-211.43525886,0.00020995,2]
[372260925,1752567057776,-151.55350398,0.00021032,2]
[372260926,1752567057786,-25000.0,0.00021032,2]
[372260927,1752567057796,-151.0,0.00021072,2]
[372260928,1752567057807,-151.0,0.00021072,2]
[372260929,1752567057823,-151.0,0.00021072,2]
[372260930,1752567057842,-13137.50784169,0.00021072,4]
[372260931,1752567057861,-151.0,0.00021073,2]
[372260932,1752567057879,-151.0,0.00021073,2]
[372260933,1752567057890,-151.0,0.00021073,2]
[372260934,1752567057901,-1139.049068,0.00021073,2]
[372260935,1752567057911,-1139.049068,0.00021073,2]
[372260936,1752567057921,-680.083982,0.00021073,2]
[372260937,1752567057931,-680.083982,0.00021073,2]
[372260938,1752567057941,-460.0,0.00021094,2]
[372260939,1752567057952,-460.0,0.00021094,2]
[372260940,1752567057961,-151.0,0.00021094,2]
[372260941,1752567057973,-610.125495,0.00021094,2]
[372260942,1752567057983,-610.125495,0.00021094,2]
[372260943,1752567057992,-151.0,0.00021094,2]
[372260944,1752567058002,-195.175684,0.00021094,2]
[372260945,1752567058012,-195.175684,0.00021094,2]
[372260946,1752567058025,-151.0,0.00021094,2]
[372260947,1752567058035,-460.0,0.00021094,2]
[372260948,1752567058045,-561.68,0.00021094,2]
[372260949,1752567058054,-6077.9,0.00021094,2]
[372260950,1752567058064,-1389.19,0.00021094,2]
[372260951,1752567058074,-460.0,0.00021094,2]
[372260952,1752567058084,-460.0,0.00021094,2]
[372260953,1752567058170,-824.94,0.00021094,2]
[372260954,1752567058181,-1943.38,0.00021094,2]
[372260955,1752567058190,-460.0,0.00021094,2]
[372260956,1752567058200,-1676.85,0.00021094,2]
[372260957,1752567058210,-2981.8,0.00021094,2]
[372260958,1752567058231,-460.0,0.00021094,2]
[372260959,1752567058241,-636.57,0.00021094,2]
[372260960,1752567058252,-1605.01,0.00021094,2]
[372260961,1752567058262,-460.0,0.00021094,2]
[372260962,1752567058272,-460.74461743,0.00021094,2]
[372260963,1752567058283,-460.0,0.00021094,2]
[372260964,1752567058293,-2148.88,0.00021094,2]
[372260965,1752567058303,-500.0,0.00021095,2]
[372260966,1752567058314,-151.0,0.00021095,2]
[372260967,1752567058324,-278.45104,0.00021095,2]
[372260968,1752567058334,-158.03688,0.00021095,2]
[372260969,1752567058344,-158.03688,0.00021095,2]
[372260970,1752567058355,-151.0,0.00021095,2]
[372260971,1752567058365,-151.0,0.00021095,2]
[372260972,1752567058375,-151.0,0.00021095,2]
[372260973,1752567058385,-151.0,0.00021095,2]
[372260974,1752567058395,-151.0,0.00021095,2]
[372260975,1752567058405,-151.0,0.00021095,2]
[372260976,1752567058415,-226.783177,0.00021095,2]
[372260977,1752567058425,-226.783177,0.00021095,2]
[372260978,1752567058435,-380.0,0.00021095,2]
[372260979,1752567058445,-151.0,0.00021095,2]
[372260980,1752567058455,-151.0,0.00021095,2]
[372260981,1752567058465,-151.0,0.00021095,2]
[372260982,1752567058478,-460.0,0.00021095,2]
[372260983,1752567058488,-151.0,0.00021095,2]
[372260984,1752567058498,-151.0,0.00021095,2]
[372260985,1752567058508,-151.0,0.00021095,2]
[372260986,1752567058518,-151.0,0.00021095,2]
[372260987,1752567058527,-151.0,0.00021095,2]
[372260988,1752567058537,-151.0,0.00021095,2]
[372260989,1752567058546,-151.0,0.00021095,2]
[372260990,1752567058556,-151.0,0.00021095,2]
[372260991,1752567058566,-151.0,0.00021095,2]
[372260992,1752567058576,-151.0,0.00021095,2]
[372260993,1752567058585,-151.0,0.00021095,2]
[372260994,1752567058596,-216.94396209,0.00021095,2]
[372260995,1752567058606,-305.70128678,0.00021095,2]
[372260996,1752567058616,-460.0,0.00021095,2]
[372260997,1752567058626,-477.51,0.00021095,2]
[372260998,1752567058636,-487.39,0.00021095,2]
[372260999,1752567058646,-667.67,0.00021095,2]
[372261000,1752567058656,-610.125495,0.00021095,2]
[372261001,1752567058666,-610.125495,0.00021095,2]
[372261002,1752567058675,-610.125495,0.00021095,2]
[372261003,1752567058684,-610.125495,0.00021095,2]
[372261004,1752567058694,-610.125495,0.00021095,2]
[372261005,1752567058704,-610.125495,0.00021095,2]
[372261006,1752567058713,-610.125495,0.00021095,2]
[372261007,1752567058737,-610.125495,0.00021095,2]
[372261008,1752567058759,-610.125495,0.00021095,2]
[372261009,1752567058778,-610.125495,0.00021095,2]
[372261010,1752567058799,-460.0,0.00021095,2]
[372261011,1752567058823,-839.74,0.00021095,2]
[372261012,1752567058842,-460.0,0.00021095,2]
[372261013,1752567058865,-460.0,0.00021095,2]
[372261014,1752567058882,-460.0,0.00021095,2]
[372261015,1752567058896,-495.21,0.00021095,2]
[372261016,1752567058912,-460.0,0.00021095,2]
[372261017,1752567058932,-838.93,0.00021095,2]
[372261018,1752567058952,-886.89,0.00021095,2]
[372261019,1752567058967,-151.0,0.00021095,2]
[372261020,1752567058984,-151.0,0.00021095,2]
[372261021,1752567059000,-151.0,0.00021095,2]
[372261022,1752567059015,-151.0,0.00021095,2]
[372261023,1752567059030,-151.0,0.00021095,2]
[372261024,1752567059045,-151.0,0.00021095,2]
[372261025,1752567059063,-195.175684,0.00021095,2]
[372261026,1752567059082,-195.175684,0.00021095,2]
[372261027,1752567059099,-195.175684,0.00021095,2]
[372261028,1752567059114,-195.175684,0.00021095,2]
[372261029,1752567059129,-195.175684,0.00021095,2]
[372261030,1752567059144,-873.01,0.00021095,2]
[372261031,1752567059158,-195.175684,0.00021095,2]
[372261032,1752567059172,-195.175684,0.00021095,2]
[372261033,1752567059188,-195.175684,0.00021095,2]
[372261034,1752567059202,-195.175684,0.00021095,2]
[372261035,1752567059218,-460.0,0.00021095,2]
[372261036,1752567059234,-195.175684,0.00021095,2]
[372261037,1752567059248,-460.0,0.00021095,2]
[372261038,1752567059264,-460.0,0.00021095,2]
[372261039,1752567059277,-460.0,0.00021095,2]
[372261040,1752567059287,-460.0,0.00021095,2]
[372261041,1752567059298,-151.0,0.00021095,2]
[372261042,1752567059308,-460.0,0.00021095,2]
[372261043,1752567059318,-460.0,0.00021095,2]
[372261044,1752567059329,-460.0,0.00021095,2]
[372261045,1752567059339,-151.0,0.00021095,2]
[372261046,1752567059349,-151.0,0.00021095,2]
[372261047,1752567059359,-151.0,0.00021095,2]
[372261048,1752567059369,-151.0,0.00021095,2]
[372261049,1752567059378,-1139.049068,0.00021095,2]
[372261050,1752567059388,-1139.049068,0.00021095,2]
[372261051,1752567059399,-1139.049068,0.00021095,2]
[372261052,1752567059408,-1139.049068,0.00021095,2]
[372261053,1752567059418,-1139.049068,0.00021095,2]
[372261054,1752567059427,-1139.049068,0.00021095,2]
[372261055,1752567059437,-1139.049068,0.00021095,2]
[372261056,1752567059447,-1139.049068,0.00021095,2]
[372261057,1752567059457,-1139.049068,0.00021095,2]
[372261058,1752567059467,-1139.049068,0.00021095,2]
[372261059,1752567059479,-1139.049068,0.00021095,2]
[372261060,1752567059489,-1139.049068,0.00021095,2]
[372261061,1752567059498,-460.0,0.00021095,2]
[372261062,1752567059645,-460.0,0.00021095,2]
[372261063,1752567059718,-861.3,0.00021095,2]
[372261064,1752567059730,-560.6,0.00021095,2]
[372261065,1752567059740,-460.0,0.00021095,2]
[372261066,1752567059750,-2800.8773924,0.00021095,2]
[372261067,1752567059760,-680.083982,0.00021095,2]
[372261068,1752567059770,-680.083982,0.00021095,2]
[372261069,1752567059780,-680.083982,0.00021095,2]
[372261070,1752567059789,-680.083982,0.00021095,2]
[372261071,1752567059799,-680.083982,0.00021095,2]
[372261072,1752567059809,-680.083982,0.00021095,2]
[372261073,1752567059819,-460.0,0.00021095,2]
[372261074,1752567059828,-680.083982,0.00021095,2]
[372261075,1752567059838,-680.083982,0.00021095,2]
[372261076,1752567059847,-680.083982,0.00021095,2]
[372261077,1752567059857,-680.083982,0.00021095,2]
[372261078,1752567059866,-680.083982,0.00021095,2]
[372261079,1752567059876,-680.083982,0.00021095,2]
[372261080,1752567059885,-460.0,0.00021095,2]
[372261081,1752567059894,-460.0,0.00021095,2]
[372261082,1752567059904,-460.0,0.00021095,2]
[372261083,1752567059913,-460.0,0.00021095,2]
[372261084,1752567059923,-460.0,0.00021095,2]
[372261085,1752567059932,-1269.77,0.00021095,2]
[372261086,1752567059942,-460.0,0.00021095,2]
[372261087,1752567059951,-867.08,0.00021095,2]
[372261088,1752567059960,-1674.63,0.00021095,2]
[372261089,1752567059970,-460.0,0.00021095,2]
[372261090,1752567059979,-4147.86,0.00021095,2]
[372261091,1752567059990,-460.0,0.00021095,2]
[372261092,1752567059999,-5848.8,0.00021095,2]
[372261093,1752567060009,-886.89,0.00021095,2]
[372261094,1752567060019,-963.83,0.00021095,2]
[372261095,1752567060029,-771.92,0.00021095,2]
[372261096,1752567060044,-680.18,0.00021095,2]
[372261097,1752567060060,-151.0,0.00021095,2]
[372261098,1752567060070,-617.26,0.00021095,2]
[372261099,1752567060080,-460.0,0.00021095,2]
[372261100,1752567060090,-460.0,0.00021095,2]
[372261101,1752567060100,-1007.25,0.00021095,2]
[372261102,1752567060111,-460.0,0.00021095,2]
[372261103,1752567060121,-917.91,0.00021095,2]
[372261104,1752567060130,-1939.88,0.00021095,2]
[372261105,1752567060140,-460.0,0.00021095,2]
[372261106,1752567060150,-1354.66,0.00021095,2]
[372261107,1752567060160,-3586.98,0.00021095,2]
[372261108,1752567060170,-541.6,0.00021095,2]
[372261109,1752567060180,-7025.13,0.00021095,2]
[372261110,1752567060190,-808.58,0.00021095,2]
[372261111,1752567060200,-649.64,0.00021095,2]
[372261112,1752567060210,-647.05,0.00021095,2]
[372261113,1752567060222,-460.0,0.00021095,2]
[372261114,1752567060232,-483.97,0.00021095,2]
[372261115,1752567060242,-563.75,0.00021095,2]
[372261116,1752567060252,-861.58,0.00021095,2]
[372261117,1752567060262,-538.14,0.00021095,2]
[372261118,1752567060272,-1599.32,0.00021095,2]
[372261119,1752567060285,-2326.61,0.00021095,2]
[372261120,1752567060295,-888.4,0.00021095,2]
[372261121,1752567060306,-460.0,0.00021095,2]
[372261122,1752567060317,-460.0,0.00021095,2]
[372261123,1752567060327,-965.69,0.00021095,2]
[372261124,1752567060337,-460.0,0.00021095,2]
[372261125,1752567060347,-560.9,0.00021095,2]
[372261126,1752567060357,-36624.85,0.000211,2]
[372261127,1752567060368,-151.0,0.000211,2]
[372261128,1752567060378,-2000.0,0.00021116,2]
[372261129,1752567060388,-2000.0,0.00021116,2]
[372261130,1752567060399,-13137.50784169,0.00021245,4]
[372261131,1752567060409,-215.0738,0.00021305,2]
[372261132,1752567060419,-230.76969291,0.00021325,2]
[372261133,1752567060429,-214.37129034,0.00021325,2]
[372261134,1752567060439,-500.0,0.00021352,2]
[372261135,1752567060449,-767.32238755,0.00021364,2]
[372261136,1752567060460,-460.0,0.00021368,2]
[372261137,1752567060471,-460.0,0.00021368,2]
[372261138,1752567060481,-561.68,0.00021368,2]
[372261139,1752567060492,-6077.9,0.00021368,2]
[372261140,1752567060503,-1389.19,0.00021368,2]
[372261141,1752567060512,-464.64218775,0.00021368,2]
[372261142,1752567060522,-460.0,0.00021368,2]
[372261143,1752567060532,-824.94,0.00021368,2]
[372261144,1752567060542,-1943.38,0.00021368,2]
[372261145,1752567060551,-460.0,0.00021368,2]
[372261146,1752567060561,-1676.85,0.00021368,2]
[372261147,1752567060571,-2981.8,0.00021368,2]
[372261148,1752567060581,-460.0,0.00021368,2]
[372261149,1752567060593,-636.57,0.00021368,2]
[372261150,1752567060603,-1605.01,0.00021368,2]
[372261151,1752567060613,-463.48559837,0.00021368,2]
[372261152,1752567060623,-460.0,0.00021368,2]
[372261153,1752567060632,-2148.88,0.00021368,2]
[372261154,1752567060642,-500.0,0.00021368,2]
[372261155,1752567060655,-500.0,0.00021369,2]
[372261156,1752567060665,-151.0,0.00021369,2]
[372261157,1752567060675,-151.0,0.00021369,2]
[372261158,1752567060685,-151.0,0.00021369,2]
[372261159,1752567060694,-151.0,0.00021369,2]
[372261160,1752567060704,-151.0,0.00021369,2]
[372261161,1752567060716,-151.259647,0.00021369,2]
[372261162,1752567060726,-151.0,0.00021369,2]
[372261163,1752567060737,-151.0,0.00021369,2]
[372261164,1752567060747,-151.0,0.00021369,2]
[372261165,1752567060757,-151.0,0.00021369,2]
[372261166,1752567060767,-151.0,0.00021369,2]
[372261167,1752567060778,-457.320865,0.00021369,2]
[372261168,1752567060788,-151.0,0.00021369,2]
[372261169,1752567060799,-457.320865,0.00021369,2]
[372261170,1752567060809,-151.0,0.00021369,2]
[372261171,1752567060819,-151.0,0.00021369,2]
[372261172,1752567060830,-460.0,0.00021369,2]
[372261173,1752567060841,-460.0,0.00021369,2]
[372261174,1752567060851,-477.51,0.00021369,2]
[372261175,1752567060860,-487.39,0.00021369,2]
[372261176,1752567060870,-667.67,0.00021369,2]
[372261177,1752567060880,-305.0144207,0.00021369,2]
[372261178,1752567060890,-839.74,0.00021369,2]
[372261179,1752567060900,-460.0,0.00021369,2]
[372261180,1752567060910,-460.0,0.00021369,2]
[372261181,1752567060920,-460.0,0.00021369,2]
[372261182,1752567060930,-495.21,0.00021369,2]
[372261183,1752567060939,-488.01963404,0.00021369,2]
[372261184,1752567060948,-838.93,0.00021369,2]
[372261185,1752567060958,-886.89,0.00021369,2]
[372261186,1752567060967,-151.0,0.00021369,2]
[372261187,1752567060977,-873.01,0.00021369,2]
[372261188,1752567060986,-460.0,0.00021369,2]
[372261189,1752567060996,-460.0,0.00021369,2]
[372261190,1752567061006,-165.05,0.00021369,2]
[372261191,1752567061017,-460.0,0.00021369,2]
[372261192,1752567061027,-460.0,0.00021369,2]
[372261193,1752567061037,-460.0,0.00021369,2]
[372261194,1752567061048,-460.0,0.00021369,2]
[372261195,1752567061059,-460.0,0.00021369,2]
[372261196,1752567061069,-460.0,0.00021369,2]
[372261197,1752567061079,-861.3,0.00021369,2]
[372261198,1752567061089,-560.6,0.00021369,2]
[372261199,1752567061102,-460.0,0.00021369,2]
[372261200,1752567061111,-460.0,0.00021369,2]
[372261201,1752567061121,-460.0,0.00021369,2]
[372261202,1752567061131,-460.0,0.00021369,2]
[372261203,1752567061141,-460.0,0.00021369,2]
[372261204,1752567061151,-460.0,0.00021369,2]
[372261205,1752567061161,-460.0,0.00021369,2]
[372261206,1752567061171,-1269.77,0.00021369,2]
[372261207,1752567061180,-460.0,0.00021369,2]
[372261208,1752567061190,-867.08,0.00021369,2]
[372261209,1752567061199,-1674.63,0.00021369,2]
[372261210,1752567061209,-460.0,0.00021369,2]
[372261211,1752567061219,-4147.86,0.00021369,2]
[372261212,1752567061229,-460.0,0.00021369,2]
[372261213,1752567061239,-5848.8,0.00021369,2]
[372261214,1752567061248,-886.89,0.00021369,2]
[372261215,1752567061258,-963.83,0.00021369,2]
[372261216,1752567061267,-771.92,0.00021369,2]
[372261217,1752567061277,-151.0,0.00021369,2]
[372261218,1752567061287,-617.26,0.00021369,2]
[372261219,1752567061297,-680.18,0.00021369,2]
[372261220,1752567061307,-460.0,0.00021369,2]
[372261221,1752567061316,-233.01954042,0.00021369,2]
[372261222,1752567061326,-1007.25,0.00021369,2]
[372261223,1752567061335,-460.0,0.00021369,2]
[372261224,1752567061345,-917.91,0.00021369,2]
[372261225,1752567061354,-1939.88,0.00021369,2]
[372261226,1752567061364,-460.0,0.00021369,2]
[372261227,1752567061374,-1354.66,0.00021369,2]
[372261228,1752567061383,-3586.98,0.00021369,2]
[372261229,1752567061393,-541.6,0.00021369,2]
[372261230,1752567061406,-7025.13,0.00021369,2]
[372261231,1752567061416,-808.58,0.00021369,2]
[372261232,1752567061425,-649.64,0.00021369,2]
[372261233,1752567061435,-647.05,0.00021369,2]
[372261234,1752567061444,-460.0,0.00021369,2]
[372261235,1752567061454,-483.97,0.00021369,2]
[372261236,1752567061464,-563.75,0.00021369,2]
[372261237,1752567061480,-861.58,0.00021369,2]
[372261238,1752567061490,-538.14,0.00021369,2]
[372261239,1752567061499,-1599.32,0.00021369,2]
[372261240,1752567061509,-2326.61,0.00021369,2]
[372261241,1752567061521,-888.4,0.00021369,2]
[372261242,1752567061530,-460.0,0.00021369,2]
[372261243,1752567061540,-460.0,0.00021369,2]
[372261244,1752567061550,-965.69,0.00021369,2]
[372261245,1752567061560,-460.0,0.00021369,2]
[372261246,1752567061570,-560.9,0.00021369,2]
[372261247,1752567061580,-13137.50784169,0.00021417,5]
[372261248,1752567061589,-151.178366,0.00021472,2]
[372261249,1752567061599,-151.0,0.00021472,2]
[372261250,1752567061608,-226.783177,0.00021472,2]
[372261251,1752567061617,-226.783177,0.00021472,2]
[372261252,1752567061628,-1236.95564081,0.00021475,2]
[372261253,1752567061637,-151.0,0.000215,2]
[372261254,1752567061646,-610.125495,0.000215,2]
[372261255,1752567061656,-610.125495,0.000215,2]
[372261256,1752567061666,-195.175684,0.000215,2]
[372261257,1752567061676,-195.175684,0.000215,2]
[372261258,1752567061685,-1139.049068,0.000215,2]
[372261259,1752567061694,-1139.049068,0.000215,2]
[372261260,1752567061703,-680.083982,0.000215,2]
[372261261,1752567061713,-680.083982,0.000215,2]
[372261262,1752567061722,-360.0,0.00021505,2]
[372261263,1752567061731,-25000.0,0.0002158,2]
[372261264,1752567061741,-13137.50784169,0.0002159,5]
[372261265,1752567061750,-151.0,0.0002159,2]
[372261266,1752567061759,-151.0,0.0002159,2]
[372261267,1752567061768,-460.0,0.00021642,2]
[372261268,1752567061777,-561.68,0.00021642,2]
[372261269,1752567061787,-6077.9,0.00021642,2]
[372261270,1752567061796,-1389.19,0.00021642,2]
[372261271,1752567061806,-460.0,0.00021642,2]
[372261272,1752567061815,-824.94,0.00021642,2]
[372261273,1752567061824,-1943.38,0.00021642,2]
[372261274,1752567061834,-460.0,0.00021642,2]
[372261275,1752567061843,-1676.85,0.00021642,2]
[372261276,1752567061852,-2981.8,0.00021642,2]
[372261277,1752567061861,-460.0,0.00021642,2]
[372261278,1752567061870,-1605.01,0.00021642,2]
[372261279,1752567061879,-636.57,0.00021642,2]
[372261280,1752567061888,-2148.88,0.00021642,2]
[372261281,1752567061898,-460.0,0.00021643,2]
[372261282,1752567061907,-205.94943025,0.00021643,2]
[372261283,1752567061920,-460.0,0.00021643,2]
[372261284,1752567061932,-477.51,0.00021643,2]
[372261285,1752567061941,-487.39,0.00021643,2]
[372261286,1752567061950,-667.67,0.00021643,2]
[372261287,1752567061959,-839.74,0.00021643,2]
[372261288,1752567061970,-460.0,0.00021643,2]
[372261289,1752567061980,-460.0,0.00021643,2]
[372261290,1752567061990,-460.0,0.00021643,2]
[372261291,1752567061999,-495.21,0.00021643,2]
[372261292,1752567062008,-838.93,0.00021643,2]
[372261293,1752567062018,-886.89,0.00021643,2]
[372261294,1752567062028,-873.01,0.00021643,2]
[372261295,1752567062037,-460.0,0.00021643,2]
[372261296,1752567062047,-460.0,0.00021643,2]
[372261297,1752567062057,-369.47235491,0.00021643,2]
[372261298,1752567062067,-460.0,0.00021643,2]
[372261299,1752567062076,-460.0,0.00021643,2]
[372261300,1752567062086,-460.0,0.00021643,2]
[372261301,1752567062095,-460.0,0.00021643,2]
[372261302,1752567062105,-861.3,0.00021643,2]
[372261303,1752567062114,-560.6,0.00021643,2]
[372261304,1752567062124,-460.0,0.00021643,2]
[372261306,1752567062133,-335.1285609,0.00021643,2]
[372261307,1752567062143,-460.0,0.00021643,2]
[372261308,1752567062153,-460.0,0.00021643,2]
[372261309,1752567062164,-460.0,0.00021643,2]
[372261310,1752567062175,-460.0,0.00021643,2]
[372261311,1752567062184,-504.7,0.00021643,2]
[372261312,1752567062194,-1269.77,0.00021643,2]
[372261313,1752567062204,-460.0,0.00021643,2]
[372261314,1752567062213,-867.08,0.00021643,2]
[372261315,1752567062223,-1674.63,0.00021643,2]
[372261316,1752567062233,-460.0,0.00021643,2]
[372261317,1752567062242,-4147.86,0.00021643,2]
[372261318,1752567062252,-460.0,0.00021643,2]
[372261319,1752567062261,-5848.8,0.00021643,2]
[372261320,1752567062274,-886.89,0.00021643,2]
[372261321,1752567062284,-963.83,0.00021643,2]
[372261322,1752567062293,-771.92,0.00021643,2]
[372261323,1752567062303,-617.26,0.00021643,2]
[372261324,1752567062312,-680.18,0.00021643,2]
[372261325,1752567062322,-460.0,0.00021643,2]
[372261326,1752567062331,-1007.25,0.00021643,2]
[372261327,1752567062341,-460.0,0.00021643,2]
[372261328,1752567062351,-917.91,0.00021643,2]
[372261329,1752567062361,-1939.88,0.00021643,2]
[372261330,1752567062371,-1354.66,0.00021643,2]
[372261331,1752567062380,-3586.98,0.00021643,2]
[372261332,1752567062390,-541.6,0.00021643,2]
[372261333,1752567062400,-7025.13,0.00021643,2]
[372261334,1752567062410,-808.58,0.00021643,2]
[372261335,1752567062420,-649.64,0.00021643,2]
[372261336,1752567062429,-647.05,0.00021643,2]
[372261337,1752567062439,-460.0,0.00021643,2]
[372261338,1752567062449,-483.97,0.00021643,2]
[372261339,1752567062459,-563.75,0.00021643,2]
[372261340,1752567062473,-861.58,0.00021643,2]
[372261341,1752567062483,-538.14,0.00021643,2]
[372261342,1752567062492,-1599.32,0.00021643,2]
[372261343,1752567062502,-2326.61,0.00021643,2]
[372261344,1752567062512,-888.4,0.00021643,2]
[372261345,1752567062521,-460.0,0.00021643,2]
[372261346,1752567062530,-460.0,0.00021643,2]
[372261347,1752567062539,-965.69,0.00021643,2]
[372261348,1752567062549,-273.05601069,0.00021643,2]
[372261349,1752567062559,-560.9,0.00021643,2]
[372261350,1752567062683,-2500.0,0.00021664,2]
[372261351,1752567062694,-2500.0,0.00021664,2]
[372261352,1752567062704,-833.14994784,0.00021738,2]
[372261353,1752567062714,-13137.50784169,0.00021762,5]
[372261354,1752567062724,-3000.0,0.000219,2]
[372261355,1752567062734,-5770.43,0.000219,2]
[372261356,1752567062744,-3000.0,0.0002191,2]
[372261357,1752567062754,-460.0,0.00021916,2]
[372261358,1752567062763,-561.68,0.00021916,2]
[372261359,1752567062771,-6077.9,0.00021916,2]
[372261360,1752567062781,-1389.19,0.00021916,2]
[372261361,1752567062791,-460.0,0.00021916,2]
[372261362,1752567062800,-824.94,0.00021916,2]
[372261363,1752567062810,-1943.38,0.00021916,2]
[372261364,1752567062820,-460.0,0.00021916,2]
[372261365,1752567062830,-1676.85,0.00021916,2]
[372261366,1752567062840,-2981.8,0.00021916,2]
[372261367,1752567062850,-455.58154844,0.00021916,2]
[372261368,1752567062859,-1605.01,0.00021916,2]
[372261369,1752567062869,-636.57,0.00021916,2]
[372261370,1752567062878,-2148.88,0.00021916,2]
[372261371,1752567062888,-151.0,0.00021917,2]
[372261372,1752567062898,-158.03688,0.00021917,2]
[372261373,1752567062907,-158.03688,0.00021917,2]
[372261374,1752567062917,-151.0,0.00021917,2]
[372261375,1752567062926,-151.0,0.00021917,2]
[372261376,1752567062936,-460.0,0.00021917,2]
[372261377,1752567062945,-477.51,0.00021917,2]
[372261378,1752567062956,-487.39,0.00021917,2]
[372261379,1752567062966,-667.67,0.00021917,2]
[372261380,1752567062976,-839.74,0.00021917,2]
[372261381,1752567062986,-460.0,0.00021917,2]
[372261382,1752567062995,-460.0,0.00021917,2]
[372261383,1752567063005,-460.0,0.00021917,2]
[372261384,1752567063014,-495.21,0.00021917,2]
[372261385,1752567063024,-838.93,0.00021917,2]
[372261386,1752567063033,-886.89,0.00021917,2]
[372261387,1752567063043,-873.01,0.00021917,2]
[372261388,1752567063053,-460.0,0.00021917,2]
[372261389,1752567063063,-460.0,0.00021917,2]
[372261390,1752567063073,-460.0,0.00021917,2]
[372261391,1752567063084,-460.0,0.00021917,2]
[372261392,1752567063094,-460.0,0.00021917,2]
[372261393,1752567063104,-1139.049068,0.00021917,2]
[372261394,1752567063113,-1139.049068,0.00021917,2]
[372261395,1752567063123,-460.0,0.00021917,2]
[372261396,1752567063133,-861.3,0.00021917,2]
[372261397,1752567063143,-560.6,0.00021917,2]
[372261398,1752567063153,-680.083982,0.00021917,2]
[372261399,1752567063162,-680.083982,0.00021917,2]
[372261400,1752567063172,-460.0,0.00021917,2]
[372261401,1752567063182,-303.08019544,0.00021917,2]
[372261402,1752567063191,-460.0,0.00021917,2]
[372261403,1752567063201,-460.0,0.00021917,2]
[372261404,1752567063210,-1269.77,0.00021917,2]
[372261405,1752567063220,-460.0,0.00021917,2]
[372261406,1752567063230,-867.08,0.00021917,2]